[Event "*** SCC Grand Prix: Titled Tuesday Blitz"]
[Site "Chess.com"]
[Date "2020.10.06"]
[Round "3"]
[White "AttackSparrow"]
[Black "vinniethepooh"]
[Result "0-1"]
[WhiteElo "2386"]
[BlackElo "2573"]
[TimeControl "180+1"]
[EndTime "10:29:37 PDT"]
[Termination "vinniethepooh won on time"]

1. e4 {[%clk 0:03:00.9]} 1... c5 {[%clk 0:03:00.4]} 2. c3 {[%clk 0:03:00.7]}
2... d5 {[%clk 0:03:00]} 3. exd5 {[%clk 0:03:01.6]} 3... Qxd5 {[%clk 0:03:00.6]}
4. d4 {[%clk 0:03:02.2]} 4... Nf6 {[%clk 0:03:01.1]} 5. Nf3 {[%clk 0:03:02.4]}
5... e6 {[%clk 0:03:01.8]} 6. Na3 {[%clk 0:03:02.1]} 6... Qd8 {[%clk 0:02:57.2]}
7. Nc2 {[%clk 0:02:59.8]} 7... Nc6 {[%clk 0:02:56.6]} 8. Be3 {[%clk 0:02:58.6]}
8... cxd4 {[%clk 0:02:55.4]} 9. Ncxd4 {[%clk 0:02:59.5]} 9... Bd7 {[%clk
0:02:48.6]} 10. Nxc6 {[%clk 0:02:51.2]} 10... Bxc6 {[%clk 0:02:49.5]} 11. Ne5
{[%clk 0:02:51.1]} 11... Bd6 {[%clk 0:02:33.9]} 12. Nxc6 {[%clk 0:02:49.4]}
12... bxc6 {[%clk 0:02:34.8]} 13. Bd3 {[%clk 0:02:47.7]} 13... Nd5 {[%clk
0:02:29.3]} 14. Bd2 {[%clk 0:02:29.4]} 14... Rb8 {[%clk 0:02:20.3]} 15. Qc2
{[%clk 0:02:22.4]} 15... Qb6 {[%clk 0:02:15.8]} 16. Rb1 {[%clk 0:02:14.3]} 16...
h6 {[%clk 0:02:08.3]} 17. O-O {[%clk 0:02:13.1]} 17... O-O {[%clk 0:02:08]} 18.
b4 {[%clk 0:02:04.9]} 18... c5 {[%clk 0:02:07.5]} 19. b5 {[%clk 0:01:59.7]}
19... Rbc8 {[%clk 0:02:00.2]} 20. Bc4 {[%clk 0:01:45.7]} 20... Rfd8 {[%clk
0:02:00]} 21. g3 {[%clk 0:01:41.6]} 21... Be5 {[%clk 0:01:57]} 22. Rfe1 {[%clk
0:01:40]} 22... Bf6 {[%clk 0:01:57.2]} 23. a4 {[%clk 0:01:37.4]} 23... Qa5
{[%clk 0:01:55.5]} 24. Rbc1 {[%clk 0:01:09.2]} 24... Nb6 {[%clk 0:01:52.6]} 25.
Bf1 {[%clk 0:01:03.6]} 25... Qxa4 {[%clk 0:01:50.4]} 26. Be3 {[%clk 0:00:53]}
26... Qxc2 {[%clk 0:01:32.9]} 27. Rxc2 {[%clk 0:00:53.9]} 27... Nd5 {[%clk
0:01:33.4]} 28. Bd2 {[%clk 0:00:54.3]} 28... c4 {[%clk 0:01:25.2]} 29. Ra1
{[%clk 0:00:53.2]} 29... Rc7 {[%clk 0:01:22.1]} 30. Ra4 {[%clk 0:00:52.1]} 30...
Nb6 {[%clk 0:01:17.1]} 31. Ra6 {[%clk 0:00:50.9]} 31... Rd5 {[%clk 0:01:13.2]}
32. Ra5 {[%clk 0:00:43.3]} 32... g5 {[%clk 0:01:06.5]} 33. Bg2 {[%clk
0:00:41.3]} 33... Rd6 {[%clk 0:00:58.5]} 34. Bc6 {[%clk 0:00:38.9]} 34... Nd5
{[%clk 0:00:50.4]} 35. Ra4 {[%clk 0:00:36.4]} 35... Ne7 {[%clk 0:00:40.8]} 36.
Bf3 {[%clk 0:00:28.5]} 36... Nd5 {[%clk 0:00:33]} 37. Kg2 {[%clk 0:00:26]} 37...
Rb6 {[%clk 0:00:31.6]} 38. Ra5 {[%clk 0:00:22.6]} 38... Kg7 {[%clk 0:00:20.5]}
39. Bxd5 {[%clk 0:00:18.7]} 39... exd5 {[%clk 0:00:20.3]} 40. Be3 {[%clk
0:00:19.3]} 40... Rbb7 {[%clk 0:00:18.3]} 41. Kf1 {[%clk 0:00:15]} 41... Re7
{[%clk 0:00:18.4]} 42. Ke2 {[%clk 0:00:13.8]} 42... h5 {[%clk 0:00:16.1]} 43.
Kd2 {[%clk 0:00:13.8]} 43... h4 {[%clk 0:00:15.8]} 44. Rca2 {[%clk 0:00:13.6]}
44... h3 {[%clk 0:00:09]} 45. Bc5 {[%clk 0:00:09.4]} 45... Re4 {[%clk
0:00:03.8]} 46. Bxa7 {[%clk 0:00:07.8]} 46... Rbe7 {[%clk 0:00:03]} 47. Be3
{[%clk 0:00:07.6]} 47... d4 {[%clk 0:00:03.4]} 48. cxd4 {[%clk 0:00:08]} 48...
Bxd4 {[%clk 0:00:04.1]} 49. R5a3 {[%clk 0:00:07.4]} 49... c3+ {[%clk 0:00:03.8]}
50. Kd3 {[%clk 0:00:07.8]} 50... Bxe3 {[%clk 0:00:04.2]} 51. fxe3 {[%clk
0:00:07.9]} 51... Rxe3+ {[%clk 0:00:05.1]} 52. Kd4 {[%clk 0:00:08.5]} 52... g4
{[%clk 0:00:02.4]} 53. Rxc3 {[%clk 0:00:05.7]} 53... R3e5 {[%clk 0:00:02.7]} 54.
Rc5 {[%clk 0:00:04.4]} 54... Re1 {[%clk 0:00:02.6]} 55. Rd2 {[%clk 0:00:03.6]}
55... Rb1 {[%clk 0:00:02.7]} 56. Kd5 {[%clk 0:00:03.2]} 56... Re3 {[%clk
0:00:02.3]} 57. Kc6 {[%clk 0:00:03.2]} 57... Reb3 {[%clk 0:00:02.9]} 58. Rg5+
{[%clk 0:00:01.7]} 58... Kf6 {[%clk 0:00:03.2]} 59. Rxg4 {[%clk 0:00:02.3]}
59... Rxb5 {[%clk 0:00:03.8]} 60. Rf4+ {[%clk 0:00:02.4]} 60... Kg6 {[%clk
0:00:03.7]} 61. Rd6+ {[%clk 0:00:02.5]} 61... Kg7 {[%clk 0:00:04.3]} 62. Rd5
{[%clk 0:00:02.5]} 62... Rb6+ {[%clk 0:00:04.2]} 63. Kc5 {[%clk 0:00:02.6]}
63... R6b5+ {[%clk 0:00:03.2]} 64. Kd4 {[%clk 0:00:03]} 64... R5b2 {[%clk
0:00:04.1]} 65. Ke5 {[%clk 0:00:03.1]} 65... Rxh2 {[%clk 0:00:04.3]} 66. Kf5
{[%clk 0:00:03.2]} 66... Rb6 {[%clk 0:00:03.4]} 67. Rg4+ {[%clk 0:00:03.5]}
67... Rg6 {[%clk 0:00:04.1]} 68. Kf4 {[%clk 0:00:03.1]} 68... Rf2+ {[%clk
0:00:04.1]} 69. Ke3 {[%clk 0:00:03.1]} 69... Rg2 {[%clk 0:00:04.1]} 70. Kf3
{[%clk 0:00:02.8]} 70... Rxg4 {[%clk 0:00:03.5]} 71. Kxg4 {[%clk 0:00:03.7]}
71... h2 {[%clk 0:00:03.9]} 72. Rh5 {[%clk 0:00:04.3]} 72... Kg6 {[%clk
0:00:04.3]} 73. Rh3 {[%clk 0:00:03.8]} 73... f5+ {[%clk 0:00:04.8]} 74. Kf4
{[%clk 0:00:03.7]} 74... Ra2 {[%clk 0:00:05.7]} 75. Kf3 {[%clk 0:00:03.4]} 75...
Kg5 {[%clk 0:00:05.6]} 76. Rh8 {[%clk 0:00:03.4]} 76... Rb2 {[%clk 0:00:05.2]}
77. Ke3 {[%clk 0:00:03.3]} 77... Kg4 {[%clk 0:00:05.4]} 78. Rg8+ {[%clk
0:00:03.7]} 78... Kh3 {[%clk 0:00:05.9]} 79. Kf4 {[%clk 0:00:03]} 79... Rf2+
{[%clk 0:00:05.5]} 80. Ke3 {[%clk 0:00:02.7]} 80... Kg2 {[%clk 0:00:05.9]} 81.
Rh8 {[%clk 0:00:02.4]} 81... Ra2 {[%clk 0:00:04.5]} 82. Kf4 {[%clk 0:00:02.4]}
82... Ra3 {[%clk 0:00:04.7]} 83. g4 {[%clk 0:00:02.1]} 83... fxg4 {[%clk
0:00:04.4]} 84. Kxg4 {[%clk 0:00:01.9]} 84... h1=Q {[%clk 0:00:05]} 0-1

[Event "*** SCC Grand Prix: Titled Tuesday Blitz"]
[Site "Chess.com"]
[Date "2020.10.06"]
[Round "3"]
[White "StiffMaster1"]
[Black "AlexOstrovskiy"]
[Result "0-1"]
[WhiteElo "2522"]
[BlackElo "2754"]
[TimeControl "180+1"]
[EndTime "10:29:52 PDT"]
[Termination "AlexOstrovskiy won on time"]

1. g3 {[%clk 0:02:59.6]} 1... d5 {[%clk 0:02:52.8]} 2. Bg2 {[%clk 0:03:00.5]}
2... Nf6 {[%clk 0:02:49.7]} 3. c4 {[%clk 0:03:00.5]} 3... e6 {[%clk 0:02:46.6]}
4. Nf3 {[%clk 0:03:00.3]} 4... dxc4 {[%clk 0:02:39.2]} 5. Qa4+ {[%clk
0:02:59.5]} 5... Bd7 {[%clk 0:02:38.9]} 6. Qxc4 {[%clk 0:02:59.6]} 6... c5
{[%clk 0:02:38.8]} 7. Ne5 {[%clk 0:02:58.8]} 7... Qc8 {[%clk 0:02:39]} 8. Nxd7
{[%clk 0:02:55.8]} 8... Qxd7 {[%clk 0:02:37.1]} 9. O-O {[%clk 0:02:47.9]} 9...
Nc6 {[%clk 0:02:37.1]} 10. d3 {[%clk 0:02:46.9]} 10... Rc8 {[%clk 0:02:35.5]}
11. Nc3 {[%clk 0:02:41.1]} 11... Be7 {[%clk 0:02:31.4]} 12. Ne4 {[%clk
0:02:35.7]} 12... Nxe4 {[%clk 0:02:28.3]} 13. Bxe4 {[%clk 0:02:36.6]} 13... O-O
{[%clk 0:02:25.7]} 14. Bxc6 {[%clk 0:02:32.8]} 14... Qxc6 {[%clk 0:02:22.1]} 15.
a4 {[%clk 0:02:32.1]} 15... Bf6 {[%clk 0:02:19.8]} 16. Rb1 {[%clk 0:02:29.5]}
16... Rfd8 {[%clk 0:02:17.6]} 17. Be3 {[%clk 0:02:29.2]} 17... Bd4 {[%clk
0:02:17.1]} 18. Bg5 {[%clk 0:02:23.4]} 18... Rd5 {[%clk 0:02:11.8]} 19. Bd2
{[%clk 0:02:21.2]} 19... h5 {[%clk 0:02:07.9]} 20. h4 {[%clk 0:01:40]} 20... Rf5
{[%clk 0:01:50.6]} 21. a5 {[%clk 0:01:28.1]} 21... b5 {[%clk 0:01:46.4]} 22.
axb6 {[%clk 0:01:25.1]} 22... axb6 {[%clk 0:01:47.3]} 23. b4 {[%clk 0:01:23.2]}
23... b5 {[%clk 0:01:44.5]} 24. Qc2 {[%clk 0:01:21.9]} 24... c4 {[%clk
0:01:41.2]} 25. dxc4 {[%clk 0:01:22]} 25... bxc4 {[%clk 0:01:42.1]} 26. e3
{[%clk 0:01:16.9]} 26... Bf6 {[%clk 0:01:40.2]} 27. Bc3 {[%clk 0:01:12.9]} 27...
Bxc3 {[%clk 0:01:25.2]} 28. Qxc3 {[%clk 0:01:13.8]} 28... Rd5 {[%clk 0:01:07.1]}
29. Rfc1 {[%clk 0:01:10.3]} 29... Qd7 {[%clk 0:01:06.3]} 30. Rc2 {[%clk
0:00:56.5]} 30... Rd3 {[%clk 0:01:02.8]} 31. Qa1 {[%clk 0:00:52.2]} 31... c3
{[%clk 0:00:52.9]} 32. b5 {[%clk 0:00:46.3]} 32... Qb7 {[%clk 0:00:38.1]} 33. b6
{[%clk 0:00:38.5]} 33... Kh7 {[%clk 0:00:23.3]} 34. Qa7 {[%clk 0:00:29.7]} 34...
Qxa7 {[%clk 0:00:19.6]} 35. bxa7 {[%clk 0:00:30.6]} 35... Ra8 {[%clk 0:00:20.5]}
36. Rb7 {[%clk 0:00:26.8]} 36... Kg6 {[%clk 0:00:19.9]} 37. Rc7 {[%clk
0:00:26.2]} 37... Rd1+ {[%clk 0:00:19.3]} 38. Kg2 {[%clk 0:00:26.5]} 38... Ra1
{[%clk 0:00:20.2]} 39. R2xc3 {[%clk 0:00:23]} 39... R8xa7 {[%clk 0:00:20.6]} 40.
Rxa7 {[%clk 0:00:18.7]} 40... Rxa7 {[%clk 0:00:21.5]} 41. Rc5 {[%clk 0:00:19.1]}
41... f6 {[%clk 0:00:20.7]} 42. Rc6 {[%clk 0:00:18.9]} 42... e5 {[%clk 0:00:21]}
43. e4 {[%clk 0:00:17.6]} 43... Ra4 {[%clk 0:00:20.1]} 44. f3 {[%clk 0:00:16.4]}
44... Ra2+ {[%clk 0:00:20.3]} 45. Kh3 {[%clk 0:00:16.9]} 45... Rf2 {[%clk
0:00:20.1]} 46. Rc3 {[%clk 0:00:17.1]} 46... Kh6 {[%clk 0:00:20.2]} 47. Ra3
{[%clk 0:00:17.1]} 47... g5 {[%clk 0:00:17.8]} 48. hxg5+ {[%clk 0:00:17.2]}
48... fxg5 {[%clk 0:00:18.7]} 49. Ra6+ {[%clk 0:00:13.2]} 49... Kg7 {[%clk
0:00:18.3]} 50. Ra3 {[%clk 0:00:08.4]} 50... Kf6 {[%clk 0:00:14.2]} 51. Ra6+
{[%clk 0:00:08.2]} 51... Kf7 {[%clk 0:00:14.6]} 52. Ra3 {[%clk 0:00:02.5]} 52...
Ke6 {[%clk 0:00:15]} 53. Ra6+ {[%clk 0:00:02.7]} 53... Ke7 {[%clk 0:00:14.8]}
54. Rg6 {[%clk 0:00:02.8]} 54... Rxf3 {[%clk 0:00:05.6]} 55. Rxg5 {[%clk
0:00:03.3]} 55... Kf6 {[%clk 0:00:06.5]} 56. Rxh5 {[%clk 0:00:03.3]} 56... Re3
{[%clk 0:00:07.1]} 57. Rh4 {[%clk 0:00:03.7]} 57... Kg5 {[%clk 0:00:07]} 58. Kg2
{[%clk 0:00:03.8]} 58... Re2+ {[%clk 0:00:07.1]} 59. Kf3 {[%clk 0:00:04.3]}
59... Ra2 {[%clk 0:00:08]} 60. Rg4+ {[%clk 0:00:04.6]} 60... Kf6 {[%clk
0:00:07.9]} 61. Rg8 {[%clk 0:00:05]} 61... Kf7 {[%clk 0:00:06.1]} 62. Rg5 {[%clk
0:00:04.4]} 62... Kf6 {[%clk 0:00:06.3]} 63. Rf5+ {[%clk 0:00:04.6]} 63... Ke6
{[%clk 0:00:06.7]} 64. Rf8 {[%clk 0:00:02.7]} 64... Ra1 {[%clk 0:00:05.8]} 65.
Kg4 {[%clk 0:00:02.5]} 65... Ke7 {[%clk 0:00:05.2]} 66. Rf5 {[%clk 0:00:02.3]}
66... Ke6 {[%clk 0:00:05.6]} 67. Rf8 {[%clk 0:00:02.1]} 67... Rg1 {[%clk
0:00:05.9]} 68. Re8+ {[%clk 0:00:02]} 68... Kf6 {[%clk 0:00:06.3]} 69. Ra8
{[%clk 0:00:02.5]} 69... Re1 {[%clk 0:00:05.5]} 70. Ra6+ {[%clk 0:00:03.4]}
70... Ke7 {[%clk 0:00:04.1]} 71. Kf5 {[%clk 0:00:04.3]} 71... Rg1 {[%clk
0:00:03.7]} 72. g4 {[%clk 0:00:04.1]} 72... Kf7 {[%clk 0:00:03.4]} 73. Rf6+
{[%clk 0:00:03.2]} 73... Kg7 {[%clk 0:00:03]} 74. Rg6+ {[%clk 0:00:03.4]} 74...
Kf7 {[%clk 0:00:02.9]} 75. Rg5 {[%clk 0:00:02.7]} 75... Ke7 {[%clk 0:00:01.6]}
76. Kxe5 {[%clk 0:00:02.9]} 76... Kf7 {[%clk 0:00:02.5]} 77. Rf5+ {[%clk
0:00:02.8]} 77... Kg6 {[%clk 0:00:03.4]} 78. g5 {[%clk 0:00:02]} 78... Re1
{[%clk 0:00:03.3]} 79. Kf4 {[%clk 0:00:02.2]} 79... Rf1+ {[%clk 0:00:03.3]} 80.
Ke5 {[%clk 0:00:03.1]} 80... Re1 {[%clk 0:00:03.9]} 81. Kd5 {[%clk 0:00:03.4]}
81... Rd1+ {[%clk 0:00:03.8]} 82. Ke6 {[%clk 0:00:03.9]} 82... Re1 {[%clk
0:00:04.3]} 83. e5 {[%clk 0:00:03.9]} 83... Ra1 {[%clk 0:00:04.9]} 84. Rf6+
{[%clk 0:00:03]} 84... Kxg5 {[%clk 0:00:04.4]} 85. Rf2 {[%clk 0:00:03.3]} 85...
Ra7 {[%clk 0:00:03.4]} 86. Kd5 {[%clk 0:00:02.1]} 86... Ra5+ {[%clk 0:00:03.1]}
87. Kd6 {[%clk 0:00:01.9]} 87... Ra6+ {[%clk 0:00:03.6]} 88. Ke7 {[%clk
0:00:02.2]} 88... Ra7+ {[%clk 0:00:04.1]} 89. Kf8 {[%clk 0:00:02.3]} 89... Ra6
{[%clk 0:00:03.2]} 0-1

[Event "*** SCC Grand Prix: Titled Tuesday Blitz"]
[Site "Chess.com"]
[Date "2020.10.06"]
[Round "3"]
[White "IMAghasiyevKamal"]
[Black "chessmachine14"]
[Result "1/2-1/2"]
[WhiteElo "2498"]
[BlackElo "2284"]
[TimeControl "180+1"]
[EndTime "10:30:41 PDT"]
[Termination "Game drawn by 50-move rule"]

1. e4 {[%clk 0:03:00.9]} 1... c5 {[%clk 0:02:58.6]} 2. Nf3 {[%clk 0:02:59.8]}
2... e6 {[%clk 0:02:58.2]} 3. d4 {[%clk 0:02:59.6]} 3... cxd4 {[%clk 0:02:57.9]}
4. Nxd4 {[%clk 0:03:00.5]} 4... Nf6 {[%clk 0:02:57.6]} 5. Nc3 {[%clk 0:03:00.4]}
5... d6 {[%clk 0:02:57.8]} 6. Be3 {[%clk 0:02:57.8]} 6... a6 {[%clk 0:02:55.4]}
7. Be2 {[%clk 0:02:52.8]} 7... Be7 {[%clk 0:02:55.2]} 8. g4 {[%clk 0:02:52.1]}
8... h6 {[%clk 0:02:48.7]} 9. Qd2 {[%clk 0:02:44.7]} 9... Nc6 {[%clk 0:02:42.6]}
10. Rg1 {[%clk 0:02:33.9]} 10... g5 {[%clk 0:02:31.5]} 11. O-O-O {[%clk
0:02:27]} 11... Rg8 {[%clk 0:02:23.1]} 12. Kb1 {[%clk 0:02:21.1]} 12... Qc7
{[%clk 0:02:22.2]} 13. f3 {[%clk 0:01:41]} 13... Ne5 {[%clk 0:02:19.5]} 14. h4
{[%clk 0:01:32.4]} 14... Nfd7 {[%clk 0:02:16.8]} 15. hxg5 {[%clk 0:01:30.8]}
15... hxg5 {[%clk 0:02:16.8]} 16. Rh1 {[%clk 0:01:13]} 16... Nc4 {[%clk
0:02:16.3]} 17. Bxc4 {[%clk 0:01:12.1]} 17... Qxc4 {[%clk 0:02:16.4]} 18. Rh5
{[%clk 0:01:11]} 18... Bf6 {[%clk 0:01:14.5]} 19. Nce2 {[%clk 0:00:53.3]} 19...
Ne5 {[%clk 0:00:36.3]} 20. Bxg5 {[%clk 0:00:49]} 20... Bxg5 {[%clk 0:00:36.1]}
21. Rxg5 {[%clk 0:00:49.1]} 21... Ng6 {[%clk 0:00:31.7]} 22. Nb3 {[%clk
0:00:43.3]} 22... Qc7 {[%clk 0:00:18.6]} 23. Qxd6 {[%clk 0:00:35.4]} 23... Qxd6
{[%clk 0:00:18.9]} 24. Rxd6 {[%clk 0:00:36]} 24... Bd7 {[%clk 0:00:19.8]} 25.
Rb6 {[%clk 0:00:30.9]} 25... Bc6 {[%clk 0:00:19.9]} 26. Na5 {[%clk 0:00:30.1]}
26... Kd8 {[%clk 0:00:19.7]} 27. Nxc6+ {[%clk 0:00:26.6]} 27... Kc7 {[%clk
0:00:20.1]} 28. Rb3 {[%clk 0:00:23.6]} 28... Kxc6 {[%clk 0:00:20.5]} 29. Nd4+
{[%clk 0:00:20.9]} 29... Kd7 {[%clk 0:00:20.7]} 30. Rxb7+ {[%clk 0:00:20.4]}
30... Kd6 {[%clk 0:00:21.1]} 31. Rxf7 {[%clk 0:00:19.8]} 31... e5 {[%clk
0:00:20.9]} 32. Rf6+ {[%clk 0:00:17.1]} 32... Kd7 {[%clk 0:00:19.1]} 33. Nf5
{[%clk 0:00:14.4]} 33... Nf4 {[%clk 0:00:19.3]} 34. Rd6+ {[%clk 0:00:13.4]}
34... Kc7 {[%clk 0:00:19.3]} 35. Rxg8 {[%clk 0:00:13.1]} 35... Rxg8 {[%clk
0:00:20.2]} 36. b3 {[%clk 0:00:12.6]} 36... Rh8 {[%clk 0:00:20.6]} 37. Kb2
{[%clk 0:00:12.6]} 37... Rh2 {[%clk 0:00:21.2]} 38. Rxa6 {[%clk 0:00:11.2]}
38... Nd3+ {[%clk 0:00:20.6]} 39. Kc3 {[%clk 0:00:08.5]} 39... Ne1 {[%clk
0:00:20.9]} 40. Re6 {[%clk 0:00:06.3]} 40... Rxc2+ {[%clk 0:00:21.2]} 41. Kb4
{[%clk 0:00:06.5]} 41... Nd3+ {[%clk 0:00:21.8]} 42. Ka3 {[%clk 0:00:04.6]}
42... Rc5 {[%clk 0:00:21.8]} 43. b4 {[%clk 0:00:04.3]} 43... Rc3+ {[%clk
0:00:22.2]} 44. Ka4 {[%clk 0:00:04.7]} 44... Nb2+ {[%clk 0:00:22]} 45. Kb5
{[%clk 0:00:04.3]} 45... Ra3 {[%clk 0:00:21.5]} 46. Re7+ {[%clk 0:00:04.4]}
46... Kd8 {[%clk 0:00:20.3]} 47. Rxe5 {[%clk 0:00:05.3]} 47... Rxa2 {[%clk
0:00:20.5]} 48. Rd5+ {[%clk 0:00:05.9]} 48... Ke8 {[%clk 0:00:20]} 49. g5 {[%clk
0:00:06.8]} 49... Ra3 {[%clk 0:00:17.1]} 50. Rd2 {[%clk 0:00:07.7]} 50... Nd3
{[%clk 0:00:15]} 51. Rb2 {[%clk 0:00:08.6]} 51... Ne5 {[%clk 0:00:14.9]} 52. Rd2
{[%clk 0:00:09.4]} 52... Nxf3 {[%clk 0:00:14.7]} 53. Rd5 {[%clk 0:00:07.1]}
53... Nxg5 {[%clk 0:00:13.8]} 54. Re5+ {[%clk 0:00:05.5]} 54... Kf7 {[%clk
0:00:13.6]} 55. Rc5 {[%clk 0:00:06.4]} 55... Nxe4 {[%clk 0:00:13.1]} 56. Nd4
{[%clk 0:00:05.9]} 56... Nd6+ {[%clk 0:00:12.3]} 57. Kc6 {[%clk 0:00:06.1]}
57... Ra6+ {[%clk 0:00:11.9]} 58. Kc7 {[%clk 0:00:05.9]} 58... Ne4 {[%clk
0:00:12.2]} 59. Re5 {[%clk 0:00:04.9]} 59... Nc3 {[%clk 0:00:11.7]} 60. b5
{[%clk 0:00:05.4]} 60... Nxb5+ {[%clk 0:00:11.6]} 61. Rxb5 {[%clk 0:00:04.8]}
61... Ra1 {[%clk 0:00:11.7]} 62. Nc6 {[%clk 0:00:05.3]} 62... Rc1 {[%clk
0:00:11.7]} 63. Rf5+ {[%clk 0:00:05.5]} 63... Ke6 {[%clk 0:00:11.2]} 64. Re5+
{[%clk 0:00:06]} 64... Kf6 {[%clk 0:00:11.1]} 65. Re2 {[%clk 0:00:06.5]} 65...
Kf5 {[%clk 0:00:11]} 66. Kd6 {[%clk 0:00:06.7]} 66... Rd1+ {[%clk 0:00:10.7]}
67. Kc5 {[%clk 0:00:07]} 67... Rc1+ {[%clk 0:00:11]} 68. Kd5 {[%clk 0:00:07.5]}
68... Rd1+ {[%clk 0:00:10.1]} 69. Nd4+ {[%clk 0:00:08]} 69... Kf6 {[%clk
0:00:10.7]} 70. Rf2+ {[%clk 0:00:07.8]} 70... Ke7 {[%clk 0:00:10.8]} 71. Rf4
{[%clk 0:00:08]} 71... Rd2 {[%clk 0:00:10.5]} 72. Re4+ {[%clk 0:00:06.9]} 72...
Kd7 {[%clk 0:00:10.2]} 73. Rh4 {[%clk 0:00:06.7]} 73... Ke7 {[%clk 0:00:10.2]}
74. Ke5 {[%clk 0:00:07.2]} 74... Kd7 {[%clk 0:00:09.2]} 75. Rh7+ {[%clk
0:00:06.8]} 75... Kc8 {[%clk 0:00:08.9]} 76. Nb5 {[%clk 0:00:05.6]} 76... Rd1
{[%clk 0:00:08.4]} 77. Nd6+ {[%clk 0:00:04.9]} 77... Kd8 {[%clk 0:00:08.5]} 78.
Ke6 {[%clk 0:00:04.8]} 78... Re1+ {[%clk 0:00:08.7]} 79. Kd5 {[%clk 0:00:05]}
79... Rd1+ {[%clk 0:00:08.8]} 80. Kc5 {[%clk 0:00:05.6]} 80... Rc1+ {[%clk
0:00:09.1]} 81. Nc4 {[%clk 0:00:06.3]} 81... Ke8 {[%clk 0:00:08.1]} 82. Kd5
{[%clk 0:00:05.9]} 82... Rd1+ {[%clk 0:00:07.5]} 83. Ke6 {[%clk 0:00:06.2]}
83... Kd8 {[%clk 0:00:07.2]} 84. Ne5 {[%clk 0:00:05.6]} 84... Kc8 {[%clk
0:00:06.9]} 85. Rg7 {[%clk 0:00:05.7]} 85... Re1 {[%clk 0:00:06.8]} 86. Rf7
{[%clk 0:00:04.3]} 86... Re2 {[%clk 0:00:06.7]} 87. Re7 {[%clk 0:00:03.3]} 87...
Re1 {[%clk 0:00:06.9]} 88. Rh7 {[%clk 0:00:03.7]} 88... Re2 {[%clk 0:00:06.9]}
89. Kd6 {[%clk 0:00:03.7]} 89... Rd2+ {[%clk 0:00:05.6]} 90. Kc5 {[%clk
0:00:04]} 90... Rc2+ {[%clk 0:00:05.8]} 91. Nc4 {[%clk 0:00:04.3]} 91... Kd8
{[%clk 0:00:05.4]} 92. Kd6 {[%clk 0:00:03.9]} 92... Ke8 {[%clk 0:00:05.4]} 93.
Ne5 {[%clk 0:00:04.2]} 93... Kf8 {[%clk 0:00:03.5]} 94. Ke6 {[%clk 0:00:04.1]}
94... Re2 {[%clk 0:00:02.1]} 95. Rf7+ {[%clk 0:00:03.8]} 95... Kg8 {[%clk
0:00:01.2]} 96. Rc7 {[%clk 0:00:04.1]} 96... Re1 {[%clk 0:00:02]} 97. Kf6 {[%clk
0:00:02.8]} 97... Rf1+ {[%clk 0:00:02.6]} 98. Kg5 {[%clk 0:00:02.3]} 98... Rg1+
{[%clk 0:00:02.9]} 99. Ng4 {[%clk 0:00:02.8]} 99... Rg2 {[%clk 0:00:02.3]} 100.
Kf5 {[%clk 0:00:02.8]} 100... Kf8 {[%clk 0:00:02.8]} 101. Rc8+ {[%clk
0:00:02.2]} 101... Ke7 {[%clk 0:00:03.1]} 102. Rc5 {[%clk 0:00:03.1]} 102... Kd6
{[%clk 0:00:03.3]} 103. Re5 {[%clk 0:00:04]} 103... Kc6 {[%clk 0:00:03.3]} 104.
Re6+ {[%clk 0:00:04.4]} 104... Kc5 {[%clk 0:00:02.9]} 105. Ne5 {[%clk
0:00:05.3]} 105... Rf2+ {[%clk 0:00:02.5]} 106. Ke4 {[%clk 0:00:05.6]} 106...
Re2+ {[%clk 0:00:03.1]} 107. Kd3 {[%clk 0:00:06]} 107... Rh2 {[%clk 0:00:03.8]}
108. Rf6 {[%clk 0:00:05.6]} 108... Kd5 {[%clk 0:00:04.4]} 109. Nf3 {[%clk
0:00:05.6]} 109... Rh3 {[%clk 0:00:04.8]} 110. Ke3 {[%clk 0:00:06.2]} 110... Kc5
{[%clk 0:00:03.9]} 111. Rf8 {[%clk 0:00:06.7]} 1/2-1/2

[Event "*** SCC Grand Prix: Titled Tuesday Blitz"]
[Site "Chess.com"]
[Date "2020.10.06"]
[Round "4"]
[White "guillembaches"]
[Black "rugbyclub"]
[Result "1-0"]
[WhiteElo "2412"]
[BlackElo "2171"]
[TimeControl "180+1"]
[EndTime "10:33:38 PDT"]
[Termination "guillembaches won by resignation"]

1. e4 {[%clk 0:03:00.9]} 1... e5 {[%clk 0:02:38.8]} 2. Nf3 {[%clk 0:03:00.9]}
2... Nc6 {[%clk 0:02:37.4]} 3. Nc3 {[%clk 0:03:00.9]} 3... Nf6 {[%clk
0:02:36.4]} 4. d4 {[%clk 0:03:01.1]} 4... exd4 {[%clk 0:02:36.3]} 5. Nxd4 {[%clk
0:03:02]} 5... Bb4 {[%clk 0:02:36.6]} 6. Nxc6 {[%clk 0:03:01.9]} 6... bxc6
{[%clk 0:02:36.6]} 7. Bd3 {[%clk 0:03:02.4]} 7... d5 {[%clk 0:02:36.8]} 8. Bd2
{[%clk 0:03:02.9]} 8... O-O {[%clk 0:02:35.1]} 9. O-O {[%clk 0:03:03.1]} 9... h6
{[%clk 0:02:29.1]} 10. Nxd5 {[%clk 0:03:01.8]} 10... Nxd5 {[%clk 0:02:26.5]} 11.
exd5 {[%clk 0:03:01.2]} 11... Bxd2 {[%clk 0:02:26.3]} 12. Qxd2 {[%clk
0:03:01.1]} 12... cxd5 {[%clk 0:02:26.8]} 13. b4 {[%clk 0:03:01.1]} 13... Be6
{[%clk 0:02:21.7]} 14. Qf4 {[%clk 0:02:58.7]} 14... Qe7 {[%clk 0:02:17.6]} 15.
Rfe1 {[%clk 0:02:56.1]} 15... Rab8 {[%clk 0:02:13.1]} 16. Rab1 {[%clk 0:02:51]}
16... c5 {[%clk 0:02:11.6]} 17. bxc5 {[%clk 0:02:41.7]} 17... Qxc5 {[%clk
0:02:10.1]} 18. Rxb8 {[%clk 0:02:39.6]} 1-0

[Event "*** SCC Grand Prix: Titled Tuesday Blitz"]
[Site "Chess.com"]
[Date "2020.10.06"]
[Round "4"]
[White "FMalexhdez"]
[Black "dopolian"]
[Result "1-0"]
[WhiteElo "2280"]
[BlackElo "2431"]
[TimeControl "180+1"]
[EndTime "10:34:22 PDT"]
[Termination "FMalexhdez won by resignation"]

1. e4 {[%clk 0:03:00.9]} 1... b6 {[%clk 0:02:53.9]} 2. d4 {[%clk 0:02:59.6]}
2... Bb7 {[%clk 0:02:54.1]} 3. Bd3 {[%clk 0:02:55.8]} 3... e6 {[%clk 0:02:54.6]}
4. c3 {[%clk 0:02:56.1]} 4... Nf6 {[%clk 0:02:54.7]} 5. Nd2 {[%clk 0:02:56.2]}
5... d5 {[%clk 0:02:53.7]} 6. e5 {[%clk 0:02:54.5]} 6... Nfd7 {[%clk 0:02:54.4]}
7. f4 {[%clk 0:02:52.7]} 7... c5 {[%clk 0:02:51.5]} 8. Ne2 {[%clk 0:02:50.4]}
8... Be7 {[%clk 0:02:44]} 9. Nf3 {[%clk 0:02:50.4]} 9... f5 {[%clk 0:02:43.8]}
10. exf6 {[%clk 0:02:49.5]} 10... Nxf6 {[%clk 0:02:38.5]} 11. O-O {[%clk
0:02:46.7]} 11... O-O {[%clk 0:02:38.2]} 12. Ng3 {[%clk 0:02:30.6]} 12... Nbd7
{[%clk 0:02:28.5]} 13. Qe2 {[%clk 0:02:29]} 13... Re8 {[%clk 0:02:14]} 14. Qxe6+
{[%clk 0:02:26.6]} 14... Kh8 {[%clk 0:02:14.4]} 15. Ng5 {[%clk 0:02:18.5]} 1-0